bitfinex-derivatives/quotes_SOLF0:USTF0_20250416
["timestamp","ask_amount","ask_price","bid_price","bid_amount"]
[1744780882792,6.75204159,125.9,125.84,14.69894159]
[1744780883188,7.9457,125.87,125.84,14.69894159]
[1744780883485,8.00450086,125.87,125.84,14.75984858]
[1744780884293,0.05880086,125.87,125.86,6.75204159]
[1744780884694,0.05880086,125.87,125.86,14.69794159]
[1744780885193,0.05880086,125.87,125.86,7.9459]
[1744780885390,7.943,125.91,125.85,41.7365]
[1744780885590,50.31085261,125.94,125.88,7.9446]
[1744780885790,621.97085261,125.96,125.87,10.57085261]
[1744780885989,7.9422,125.92,125.89,7.9435]
[1744780886491,7.9922236,125.92,125.89,8.00412557]
[1744780886694,0.0500236,125.92,125.9,7.9433]
[1744780888697,0.0500236,125.92,125.89,0.06062557]
[1744780888892,10.62087621,125.92,125.89,0.06062557]
[1744780889198,10.57085261,125.9,125.85,39.74]
[1744780889496,10.57085261,125.9,125.84,7.9467]
[1744780890199,7.9453,125.87,125.86,0.05375116]
[1744780891997,0.05531193,125.88,125.81,4.2627]
[1744780892207,18.51975261,125.82,125.77,7.9515]
[1744780892499,10.57085261,125.82,125.76,1.9971]
[1744780892698,10.57085261,125.86,125.76,1.9971]
[1744780892894,7.9502,125.8,125.76,1.9971]
[1744780893097,0.05951096,125.79,125.77,0.05922412]
[1744780894000,7.951,125.78,125.77,0.05922412]
[1744780894500,8.01001096,125.79,125.77,0.05922412]
[1744780895201,7.951,125.78,125.77,0.05922412]
[1744780895502,21.20121618,125.79,125.7,1.9971]
[1744780895701,59.35085261,125.79,125.68,48.6816]
[1744780895998,10.57085261,125.75,125.68,48.6816]
[1744780896299,10.57085261,125.75,125.68,46.6763]
[1744780896495,7.9559,125.71,125.68,2.1363]
[1744780896701,7.9559,125.71,125.7,0.05966358]
[1744780899014,7.9583,125.67,125.65,2.0053]
[1744780899201,7.9583,125.67,125.64,52.991]
[1744780899401,10.57085261,125.69,125.64,52.991]
[1744780899597,10.57085261,125.69,125.64,4.211]
[1744780899905,10.57085261,125.69,125.64,2.0833]
[1744780900108,10.57085261,125.67,125.65,0.03110138]
[1744780900301,7.9586,125.66,125.65,0.03110138]
[1744780900506,21.14170522,125.66,125.57,4.2823]
[1744780900702,0.8618,125.67,125.56,7.9647]
[1744780900899,10.57085261,125.62,125.54,55.2533]
[1744780901099,16.99644893,125.63,125.54,55.2533]
[1744780901301,7.9623,125.61,125.54,55.2533]
[1744780901495,0.05924812,125.59,125.54,55.2533]
[1744780901905,0.05924812,125.59,125.54,48.8]
[1744780902509,8.02234812,125.59,125.54,56.7657]
[1744780902808,0.05924812,125.59,125.54,48.8]
[1744780903709,7.9641,125.58,125.54,48.8]
[1744780903908,0.05924812,125.59,125.5,58.627]
[1744780904202,0.05955743,125.56,125.5,58.627]
[1744780904807,0.05955743,125.56,125.53,7.9664]
[1744780905009,0.05955743,125.56,125.5,58.627]
[1744780905409,0.05955743,125.56,125.52,7.9674]
[1744780905603,0.05955743,125.56,125.5,58.627]
[1744780906207,18.25924893,125.63,125.52,16.99644893]
[1744780906407,16.99644893,125.63,125.52,16.99644893]
[1744780906809,54.32,125.64,125.52,16.99644893]
[1744780907011,16.99644893,125.66,125.55,16.99644893]
[1744780907209,0.05276599,125.62,125.59,0.05312001]
[1744780907407,56.1409,125.73,125.59,0.0585097]
[1744780907606,56.1409,125.73,125.61,16.99644893]
[1744780907808,54.36,125.73,125.62,54.36]
[1744780908010,7.9556,125.71,125.62,54.36]
[1744780908311,54.36,125.73,125.62,54.36]
[1744780908611,8.00796102,125.68,125.66,0.05914432]
[1744780909007,0.05046102,125.68,125.66,0.05914432]
[1744780910912,71.35644893,125.67,125.57,4.1268]
[1744780911115,7.9622,125.61,125.57,4.1268]
[1744780911308,16.99644893,125.63,125.57,4.1268]
[1744780911702,0.05418578,125.61,125.57,4.1268]
[1744780911909,0.05418578,125.61,125.59,0.05150408]
[1744780913317,0.05418578,125.61,125.59,8.01440408]
[1744780913714,0.05418578,125.61,125.59,0.05150408]
[1744780914817,56.5,125.71,125.59,0.05150408]
[1744780915112,1.3239,125.7,125.57,4.1268]
[1744780915316,16.99644893,125.69,125.57,60.6268]
[1744780915819,8.02030216,125.64,125.62,0.05292611]
[1744780916117,0.05945455,125.64,125.62,0.05292611]
[1744780918417,8.01945455,125.64,125.62,0.05292611]
[1744780919315,0.05945455,125.64,125.62,0.05292611]
[1744780919916,8.01965455,125.64,125.62,0.05292611]
[1744780920509,7.9605,125.63,125.62,0.05292611]
[1744780921715,8.01955455,125.64,125.62,0.05292611]
[1744780922314,0.05945455,125.64,125.62,0.05292611]
[1744780922514,0.05945455,125.64,125.63,7.9605]
[1744780923018,56.5,125.71,125.62,0.05292611]
[1744780923316,56.5,125.71,125.57,60.6268]
[1744780923514,16.99644893,125.67,125.59,7.9626]
[1744780923820,16.99644893,125.67,125.57,60.6268]
[1744780924117,8.0157777,125.63,125.61,0.05096931]
[1744780925315,7.9611,125.62,125.61,0.05096931]
[1744780925516,0.0549777,125.63,125.61,0.05096931]
[1744780926320,56.5,125.71,125.61,0.05096931]
[1744780926521,7.9564,125.7,125.66,7.958]
[1744780927315,0.05743337,125.69,125.67,0.05114489]
[1744780928524,8.01423337,125.69,125.67,0.05114489]
[1744780929424,0.05743337,125.69,125.67,0.05114489]
[1744780930722,0.05743337,125.69,125.68,7.9573]
[1744780930922,0.05743337,125.69,125.67,0.05114489]
[1744780931322,73.49644893,125.75,125.71,7.9554]
[1744780931527,73.49644893,125.75,125.68,2.0973]
[1744780931723,7.9543,125.73,125.68,2.0973]
[1744780931924,73.49644893,125.75,125.69,7.9563]
[1744780932229,73.49644893,125.75,125.68,2.0973]
[1744780932423,0.05759821,125.73,125.7,0.05654849]
[1744780932729,8.01219821,125.73,125.7,8.01224849]
[1744780933022,0.05759821,125.73,125.7,0.05654849]
[1744780933523,0.05759821,125.73,125.7,8.01234849]
[1744780934125,0.05759821,125.73,125.71,7.9553]
[1744780934922,0.05759821,125.73,125.72,7.9548]
[1744780935627,8.01229821,125.73,125.7,0.05654849]
[1744780936326,0.05759821,125.73,125.7,0.05654849]
[1744780936729,7.9552,125.72,125.7,0.05654849]
[1744780936924,0.05759821,125.73,125.7,0.05654849]
[1744780937526,0.05759821,125.73,125.71,7.9551]
[1744780938328,0.05759821,125.73,125.7,0.05654849]
[1744780938726,7.9554,125.71,125.7,0.05654849]
[1744780939029,17.05404714,125.73,125.64,2.1242]
[1744780939330,16.99644893,125.73,125.64,2.1242]
[1744780939532,7.9565,125.7,125.67,7.9579]
[1744780939726,16.99644893,125.73,125.64,2.1242]
[1744780939927,0.06024668,125.71,125.68,0.05218397]
[1744780941027,16.99644893,125.7,125.63,2.0624]
[1744780941625,7.9595,125.65,125.62,7.961]
[1744780941831,16.99644893,125.67,125.6,2.1309]
[1744780942031,0.06119218,125.65,125.62,0.0594716]
[1744780942931,0.06119218,125.65,125.63,7.96]
[1744780943732,0.06119218,125.65,125.62,0.0594716]
[1744780944325,54.8,125.69,125.62,0.0594716]
[1744780944633,71.79644893,125.73,125.62,17.05592053]
[1744780944829,71.79644893,125.73,125.63,2.2116]
[1744780945032,71.79644893,125.73,125.64,54.8]
[1744780945435,0.05790851,125.7,125.67,0.05848059]
[1744780945832,0.05790851,125.7,125.68,7.957]
[1744780946540,0.05790851,125.7,125.67,0.05848059]
[1744780947139,0.05790851,125.7,125.68,7.9572]
[1744780953849,0.05790851,125.7,125.69,7.9567]
[1744780954744,572.84,125.76,125.7,7.9557]
[1744780955244,7.9548,125.72,125.69,7.9564]
[1744780955447,7.9548,125.72,125.68,2.1602]
[1744780955640,0.06009686,125.71,125.69,0.05093166]
[1744780955846,572.84,125.76,125.69,0.05093166]
[1744780956250,7.9545,125.73,125.7,7.9557]
[1744780956450,7.9545,125.73,125.7,8.01540009]
[1744780958651,7.9549,125.72,125.7,0.05970009]
[1744780958848,0.06074281,125.74,125.7,0.05970009]
[1744780959152,10.60440825,125.73,125.7,0.05970009]
[1744780959353,7.9554,125.71,125.7,0.05970009]
[1744780960453,7.9551,125.72,125.7,0.05970009]
[1744780961951,10.60440825,125.73,125.7,0.05970009]
[1744780962551,7.9554,125.71,125.7,0.05970009]
[1744780962952,10.60440825,125.71,125.65,2.0736]
[1744780963955,0.05360149,125.69,125.67,0.05602775]
[1744780965155,8.01030149,125.69,125.67,0.05602775]
[1744780965759,7.9573,125.68,125.67,0.05602775]
[1744780967759,7.9589,125.66,125.62,4.1543]
[1744780967960,10.60440825,125.67,125.62,2.0197]
[1744780968261,60.46440825,125.67,125.61,10.0646]
[1744780968563,10.60440825,125.63,125.57,2.0282]
[1744780968859,7.9627,125.6,125.59,0.05405679]
[1744780970560,10.66533157,125.61,125.54,2.1756]
[1744780970755,10.60440825,125.59,125.54,2.1756]
[1744780970961,10.60440825,125.59,125.53,7.9665]
[1744780971162,17.00563774,125.6,125.51,54.1309]
[1744780971460,0.05845186,125.57,125.54,8.02368767]
[1744780973160,0.05845186,125.57,125.54,0.05798767]
[1744780973856,0.05845186,125.57,125.54,8.02388767]
[1744780975055,0.05845186,125.57,125.54,0.05798767]
[1744780975362,66.9640896,125.57,125.54,0.05798767]
[1744780976155,7.9655,125.56,125.54,0.05798767]
[1744780977163,66.9640896,125.57,125.54,0.05798767]
[1744780978260,7.9655,125.55,125.54,0.05798767]
[1744780980562,7.965,125.56,125.54,0.05798767]
[1744780980762,49.95845186,125.57,125.54,0.05798767]
[1744780981068,66.9640896,125.57,125.54,0.05798767]
[1744780981265,66.9640896,125.57,125.49,2.0223]
[1744780981467,66.90563774,125.57,125.49,2.0223]
[1744780981660,7.9666,125.54,125.51,7.9679]
[1744780982065,7.9657,125.55,125.49,2.0223]
[1744780982266,0.05605458,125.53,125.51,0.06015141]
[1744780982867,49.9,125.57,125.51,0.06015141]
[1744780983667,0.05905705,125.55,125.53,7.9665]
[1744780983868,0.05905705,125.55,125.53,8.02673622]
[1744780985168,8.02475705,125.55,125.53,0.06023622]
[1744780985468,0.05905705,125.55,125.53,0.06023622]
[1744780985768,8.02485705,125.55,125.53,0.06023622]
[1744780986564,7.9662,125.54,125.53,0.06023622]
[1744780987265,17.00563774,125.54,125.47,52.1152]
[1744780987461,17.00563774,125.54,125.47,2.2152]
[1744780988268,0.05536651,125.52,125.49,0.05596977]
[1744780988566,49.97536651,125.52,125.49,0.05596977]
[1744780989169,7.9687,125.5,125.49,0.05596977]
[1744780991365,7.9699,125.49,125.45,2.127]
[1744780991567,49.92,125.52,125.45,2.127]
[1744780991868,49.92,125.52,125.46,7.9709]
[1744780992373,0.05545061,125.5,125.47,7.9706]
[1744780992667,8.02455061,125.5,125.45,2.127]
[1744780992874,0.05545061,125.5,125.45,7.9718]
[1744780993172,7.9699,125.49,125.43,54.2345]
[1744780993370,0.05035849,125.47,125.43,54.2345]
[1744780993672,0.05035849,125.47,125.45,7.9715]
[1744780994669,0.05035849,125.47,125.43,2.1603]
[1744780995372,10.64224016,125.54,125.45,10.64224016]
[1744780995565,10.64224016,125.54,125.46,2.192]
[1744780995769,7.9691,125.5,125.47,7.9702]
[1744780996168,10.64224016,125.5,125.43,2.1603]
[1744780996471,8.02317492,125.48,125.45,0.05035849]
[1744780997170,8.02317492,125.48,125.45,8.02225849]
[1744780997675,7.9706,125.47,125.45,0.05035849]
[1744780998374,0.05267492,125.48,125.45,0.05035849]
[1744781000276,7.9708,125.47,125.45,0.05035849]
[1744781000476,0.05267492,125.48,125.45,0.05035849]
[1744781000877,0.05267492,125.48,125.46,7.9708]
[1744781001278,0.05267492,125.48,125.45,0.05035849]
[1744781002177,0.05267492,125.48,125.46,7.9712]
[1744781002572,0.05267492,125.48,125.45,0.05035849]
[1744781003078,8.02297492,125.48,125.45,8.02205849]
[1744781003481,7.9706,125.47,125.45,0.05035849]
[1744781003880,0.05267492,125.48,125.45,0.05035849]
[1744781004078,8.02297492,125.48,125.45,8.02205849]
[1744781005980,0.05267492,125.48,125.47,7.9706]
[1744781006370,10.64224016,125.52,125.47,7.9706]
[1744781006574,10.64224016,125.52,125.45,0.05035849]
[1744781006575,7.9684,125.51,125.48,7.9698]
[1744781007374,8.02757488,125.51,125.48,8.0275853]
[1744781007579,8.02757488,125.51,125.48,0.0577853]
[1744781007779,0.05917488,125.51,125.48,0.0577853]
[1744781008475,48.38,125.58,125.49,10.64224016]
[1744781008677,48.38,125.58,125.5,52.6169]
[1744781008876,7.9646,125.57,125.5,52.6169]
[1744781009077,573.54,125.6,125.51,10.64224016]
[1744781009270,7.9645,125.57,125.51,10.64224016]
[1744781009470,10.64224016,125.59,125.53,0.05161457]
[1744781009670,0.05378011,125.55,125.53,8.01801457]
[1744781009982,0.05378011,125.55,125.53,0.05161457]
[1744781010372,159.58396328,125.62,125.53,0.05161457]
[1744781010578,10.64224016,125.6,125.5,63.25914016]
[1744781010778,10.64224016,125.6,125.53,7.9664]
[1744781011077,7.9637,125.58,125.53,7.9664]
[1744781011283,48.38,125.62,125.52,10.64224016]
[1744781011485,0.06083671,125.58,125.56,8.02331694]
[1744781013187,0.06083671,125.58,125.56,0.05851694]
[1744781014080,7.9643,125.57,125.52,7.9672]
[1744781014480,7.965,125.56,125.52,7.9672]
[1744781014882,10.64224016,125.57,125.51,7.9678]
[1744781015078,0.06076343,125.55,125.53,0.05445879]
[1744781015287,8.02666343,125.55,125.53,0.05445879]
[1744781015590,10.70300359,125.55,125.53,0.05445879]
[1744781015887,10.70300359,125.55,125.46,2.1821]
[1744781016087,4.4217,125.56,125.46,2.1821]
[1744781016283,7.9657,125.55,125.47,14.75884016]
[1744781016489,7.9657,125.55,125.48,49.98]
[1744781016689,7.9657,125.55,125.51,7.9676]
[1744781016891,0.05074319,125.54,125.52,0.06060418]
[1744781017491,0.05074319,125.54,125.52,8.02800418]
[1744781018895,10.64224016,125.53,125.46,2.1821]
[1744781019084,10.64224016,125.49,125.4,4.2099]
[1744781019286,7.9709,125.47,125.4,6.2913]
[1744781019486,2.9813,125.55,125.43,10.64224016]
[1744781019686,2.9813,125.55,125.42,10.64224016]
[1744781019687,10.64224016,125.52,125.42,10.64224016]
[1744781019889,10.64224016,125.52,125.48,0.04240849]
[1744781019890,0.05175399,125.5,125.48,0.04240849]
[1744781020493,7.9693,125.49,125.48,0.04240849]
[1744781020694,0.05175399,125.5,125.48,0.04240849]
[1744781022091,7.9693,125.49,125.48,0.04240849]
[1744781022493,0.05175399,125.5,125.48,0.04240849]
[1744781023791,7.9693,125.49,125.48,0.04240849]
[1744781024193,18.60224016,125.49,125.4,4.2247]
[1744781024395,7.9736,125.43,125.4,4.2247]
[1744781024593,10.64224016,125.46,125.4,4.2247]
[1744781024793,10.64224016,125.46,125.4,2.0814]
[1744781025290,0.06084586,125.44,125.4,2.0814]
[1744781025493,8.03374586,125.44,125.4,2.0814]
[1744781025692,0.06084586,125.44,125.4,2.0814]
[1744781027200,7.9734,125.43,125.4,2.0814]
[1744781027395,0.06084586,125.44,125.4,2.0814]
[1744781027798,8.03374586,125.44,125.4,2.0814]
[1744781028004,8.03374586,125.44,125.31,73.36932502]
[1744781028005,10.70308602,125.44,125.31,73.36932502]
[1744781028302,0.0504759,125.39,125.31,77.46862502]
[1744781028498,0.05651832,125.36,125.31,77.46862502]
[1744781028903,0.05651832,125.36,125.31,4.0993]
[1744781029301,0.05651832,125.36,125.31,12.0795]
[1744781029503,0.05651832,125.36,125.31,4.0993]
[1744781030099,0.05651832,125.36,125.32,7.9801]
[1744781030304,10.64224016,125.42,125.33,0.05651832]
[1744781030505,10.64224016,125.4,125.31,4.0993]
[1744781031007,10.64224016,125.36,125.31,4.0993]
[1744781031204,10.64224016,125.34,125.32,0.05447759]
[1744781031503,10.64224016,125.33,125.25,2.0931]
[1744781031805,0.05037844,125.3,125.28,0.05651832]
[1744781032206,573.9,125.41,125.28,0.05651832]
[1744781032402,10.64224016,125.38,125.25,2.0931]
[1744781032601,10.64224016,125.36,125.26,10.64224016]
[1744781032800,10.64224016,125.32,125.25,2.0931]
[1744781033200,0.05407683,125.3,125.25,2.0931]
[1744781033401,17.08176245,125.29,125.27,0.05106749]
[1744781033907,0.05407683,125.3,125.27,0.05106749]
[1744781035503,8.03567683,125.3,125.27,0.05106749]
[1744781036005,0.05407683,125.3,125.27,0.05106749]
[1744781036409,7.9782,125.36,125.27,0.05106749]
[1744781036610,17.08176245,125.39,125.26,6.4765]
[1744781036809,17.08176245,125.39,125.28,17.08176245]
[1744781037007,7.9764,125.38,125.26,6.4765]
[1744781037206,7.9764,125.38,125.28,17.08176245]
[1744781037599,0.05030248,125.34,125.33,7.9794]
[1744781037804,17.08176245,125.41,125.28,17.08176245]
[1744781038107,7.9758,125.39,125.28,17.08176245]
[1744781038704,0.05930283,125.35,125.33,7.979]
[1744781038909,0.05930283,125.35,125.33,8.03889111]
[1744781039108,0.05930283,125.35,125.33,0.05989111]
[1744781039307,0.05930283,125.35,125.33,8.03929111]
[1744781039706,0.05930283,125.35,125.33,0.05989111]
[1744781040809,0.05930283,125.35,125.34,7.9789]
[1744781041008,0.05930283,125.35,125.33,0.05989111]
[1744781042712,8.03770283,125.35,125.33,0.05989111]
[1744781042912,25.12106528,125.35,125.26,4.3123]
[1744781043104,17.08176245,125.37,125.26,4.3123]
[1744781043105,7.9825,125.29,125.26,4.3123]
[1744781043304,17.08176245,125.32,125.26,4.3123]
[1744781043508,7.9838,125.27,125.21,2.2056]
[1744781043708,17.08176245,125.29,125.21,2.2056]
[1744781043912,0.05636466,125.26,125.24,0.06081469]
[1744781045506,7.9846,125.25,125.24,0.06081469]
[1744781045712,0.05636466,125.26,125.16,6.291]
[1744781045912,17.08176245,125.25,125.16,6.291]
[1744781046109,7.9872,125.21,125.16,14.2807]
[1744781046413,17.08176245,125.25,125.16,6.291]
[1744781046607,0.05467944,125.22,125.19,0.05491562]
[1744781046802,8.04137944,125.22,125.19,0.05491562]
[1744781047614,0.05467944,125.22,125.19,0.05491562]
[1744781048506,7.9836,125.27,125.22,7.9859]
[1744781048711,17.08176245,125.28,125.18,17.08176245]
[1744781049210,25.06496245,125.28,125.23,7.9855]
[1744781049413,17.08176245,125.31,125.18,17.08176245]
[1744781049614,0.05410844,125.26,125.25,7.9846]
[1744781049811,0.05769987,125.27,125.24,0.0607041]
[1744781050113,0.05844135,125.27,125.24,0.05816014]
[1744781050516,575.7064,125.36,125.24,0.05816014]
[1744781050715,575.7064,125.36,125.27,7.983]
[1744781050911,17.08176245,125.28,125.16,366.2124]
[1744781051110,17.08176245,125.28,125.16,4.2124]
[1744781051513,7.985,125.25,125.16,4.2124]
[1744781051719,0.05411525,125.23,125.21,0.0568732]
[1744781052016,0.05545781,125.23,125.21,0.0568732]
[1744781055016,0.05545781,125.23,125.21,0.01700697]
[1744781055017,7.9865,125.22,125.21,0.01700697]
[1744781056016,7.98,125.22,124.99,574.74]
[1744781056219,4.52037627,125.21,125.03,2.0343]
[1744781056414,17.08176245,125.17,125.05,7.9973]
[1744781056914,0.05604988,125.12,125.1,0.06061143]
[1744781057111,0.06053891,125.12,125.1,0.05891862]
[1744781060419,0.06053891,125.12,125.04,2.1191]
[1744781060617,17.08176245,125.13,125.04,2.1191]
[1744781061113,1.5511,125.12,125.03,2.0343]
[1744781061314,0.05781982,125.09,125.06,0.05867639]
[1744781061621,0.05618229,125.09,125.06,0.05231533]
[1744781062016,7.9956,125.08,125.06,0.05231533]
[1744781062621,0.05618229,125.09,125.06,0.05231533]
[1744781062825,8.05618229,125.09,124.93,362.0]
[1744781063023,17.08176245,125.02,124.86,6.3064]
[1744781063219,17.08176245,124.94,124.86,2.0083]
[1744781063416,17.08176245,124.91,124.83,75.47792502]
[1744781063717,17.14141819,124.88,124.86,0.03718943]
[1744781064023,0.05485723,124.88,124.86,0.03718943]
[1744781064922,0.05485723,124.88,124.74,1.39378404]
[1744781064923,0.05485723,124.88,124.75,73.36932502]
[1744781065121,575.54,124.94,124.78,2.052]
[1744781065317,575.54,124.94,124.81,27.945659]
[1744781065624,27.945659,124.94,124.82,1.46496119]
[1744781065918,27.945659,124.99,124.83,579.15692542]
[1744781066125,27.945659,124.99,124.84,3.53652542]
[1744781066322,1.9067,125.01,124.84,2.0716]
[1744781066514,35.949259,124.96,124.86,8.0089]
[1744781066721,1.9067,125.01,124.84,2.0716]
[1744781066917,0.05441155,124.94,124.78,2.052]
[1744781067225,27.945659,124.79,124.75,36.87002502]
[1744781067423,1.46521007,124.94,124.74,26.77401255]
[1744781067424,55.891318,124.76,124.74,26.77401255]
[1744781067617,27.945659,124.75,124.74,1.09041255]
[1744781067820,55.891318,124.75,124.74,1.09041255]
[1744781068020,63.911318,124.75,124.72,131.38001775]
[1744781068221,63.908618,124.74,124.72,49.25621775]
[1744781068419,27.945659,124.73,124.72,9.17621775]
[1744781068822,8.02,124.73,124.56,73.60456011]
[1744781069123,1.60359204,124.72,124.58,200.31]
[1744781069321,8.0197,124.71,124.6,80.13]
[1744781069627,1.60359204,124.72,124.6,200.31]
[1744781069820,1.60359204,124.72,124.6,48.08]
[1744781070023,0.05757657,124.67,124.65,2.575e-05]
[1744781070329,55.891318,124.67,124.65,2.575e-05]
[1744781070519,55.891318,124.67,124.56,121.68456011]
[1744781070520,1.60436386,124.66,124.56,73.60456011]
[1744781070719,27.945659,124.6,124.54,35.37034203]
[1744781070924,576.38,124.59,124.47,358.4519104]
[1744781071124,27.945659,124.48,124.28,557.6484157]
[1744781071325,27.945659,124.53,124.24,4.088]
[1744781071626,576.38,124.59,124.44,160.29]
[1744781071927,25.38718095,124.52,124.25,700.38]
[1744781072122,25.38718095,124.52,124.43,80.13]
[1744781072321,0.05175162,124.49,124.48,160.29]
[1744781072525,577.98436386,124.66,124.51,240.42]
[1744781072728,1.39829232,124.57,124.51,80.13]
[1744781073024,105.60952996,124.63,124.52,142.13]
[1744781073222,1.60487883,124.62,124.53,160.29]
[1744781073428,105.60952996,124.63,124.55,160.29]
[1744781073621,0.0593103,124.6,124.58,0.05554814]
[1744781074029,28.0049693,124.6,124.58,0.05554814]
[1744781074227,27.945659,124.59,124.58,0.05554814]
[1744781074431,27.945659,124.59,124.28,1.397422]
[1744781074432,124.0,124.59,124.36,2.0035]
[1744781074629,27.945659,124.49,124.42,160.29]
[1744781074830,27.945659,124.48,124.41,240.42]
[1744781075026,1.60655474,124.49,124.44,160.18495652]
[1744781075228,27.945659,124.55,124.47,240.31495652]
[1744781075435,203.96154227,124.58,124.51,80.13]
[1744781075631,203.96154227,124.58,124.52,80.13]
[1744781075829,0.05306148,124.56,124.47,27.945659]
[1744781076134,3.064e-05,124.53,124.42,576.82]
[1744781076337,576.82,124.66,124.56,8.0288]
[1744781076523,176.01588327,124.68,124.55,27.945659]
[1744781076730,176.01588327,124.68,124.58,27.945659]
[1744781077229,9.883e-05,124.64,124.62,0.0548874]
[1744781077431,150.0407821,124.68,124.65,27.945659]
[1744781077637,27.945659,124.81,124.7,8.0198]
[1744781077834,150.0407821,124.84,124.68,27.945659]
[1744781078137,150.0407821,124.84,124.71,27.945659]
[1744781078333,27.945659,124.85,124.76,0.05395759]
[1744781078629,0.05071766,124.82,124.79,0.05812084]
[1744781078930,27.945659,124.8,124.66,577.26]
[1744781079129,8.0146,124.79,124.58,577.26]
[1744781079337,27.945659,124.76,124.62,27.945659]
[1744781079532,27.945659,124.73,124.58,577.26]
[1744781079732,27.945659,124.71,124.58,577.26]
[1744781079935,0.0509996,124.68,124.66,0.05684012]
[1744781080136,27.945659,124.77,124.63,29.980959]
[1744781080536,577.26,124.81,124.63,29.980959]
[1744781080734,577.26,124.81,124.66,27.945659]
[1744781080937,27.945659,124.82,124.69,27.945659]
[1744781081235,0.05640315,124.77,124.74,0.05996309]
[1744781081441,0.05640315,124.77,124.74,0.05376054]
[1744781081633,27.945659,124.76,124.74,0.00276094]
[1744781082033,27.945659,124.76,124.67,2.2153]
[1744781082336,27.945659,124.72,124.64,2.0655]
[1744781083135,27.99866069,124.69,124.67,0.06067812]
[1744781083339,28.0047661,124.69,124.6,2.1689]
[1744781083538,27.945659,124.65,124.58,2.0655]
[1744781083734,27.945659,124.67,124.58,2.0655]
[1744781083939,27.945659,124.73,124.65,8.023]
[1744781084134,577.1,124.78,124.62,27.945659]
[1744781084338,6.70321628,124.77,124.65,27.945659]
[1744781084536,34.64887528,124.76,124.66,2.1689]
[1744781084736,0.05202705,124.72,124.66,2.1689]
[1744781084931,27.945659,124.69,124.66,2.1689]
[1744781085142,14.72441628,124.68,124.59,2.0468]
[1744781085346,0.05569599,124.65,124.59,2.0468]
[1744781085637,27.99675754,124.63,124.55,2.0113]
[1744781085943,27.945659,124.67,124.58,0.05580879]
[1744781086243,6.68279945,124.66,124.57,27.945659]
[1744781086438,27.945659,124.72,124.6,27.945659]
[1744781086743,27.945659,124.69,124.58,4.1482]
[1744781086944,0.06119314,124.65,124.62,0.05580879]
[1744781087738,27.945659,124.73,124.62,0.05580879]
[1744781087941,27.945659,124.73,124.58,4.1482]
[1744781088138,577.1,124.76,124.6,27.945659]
[1744781088342,35.962959,124.75,124.65,8.023]
[1744781088543,6.32206217,124.75,124.62,27.945659]
[1744781088744,0.05848792,124.7,124.67,0.05744792]
[1744781088951,29.3413716,124.81,124.68,27.945659]
[1744781089143,27.945659,124.81,124.69,2.1197]
[1744781089443,6.32419058,124.8,124.72,8.018]
[1744781089746,6.32419058,124.8,124.69,2.1197]
[1744781089945,27.945659,124.84,124.69,2.1197]
[1744781089946,0.05926936,124.76,124.73,0.05137245]
[1744781090134,35.956659,124.84,124.76,8.0157]
[1744781090336,17.93123729,124.84,124.77,5.00721281]
[1744781090647,34.19317049,124.83,124.78,5.00721281]
[1744781090847,27.18335654,124.83,124.79,5.00721281]
[1744781091037,0.05659946,124.82,124.8,5.0602822]
[1744781091345,8.06758692,124.82,124.81,4.83401435]
[1744781091649,28.00114592,124.82,124.69,2.1197]
[1744781091947,27.945659,124.76,124.7,9.22232941]
[1744781092141,27.945659,124.88,124.7,9.22232941]
[1744781092445,8.015,124.78,124.71,18.31415548]
[1744781092648,0.06106396,124.76,124.73,0.06069387]
[1744781092845,0.06067288,124.76,124.73,8.06905068]
[1744781093045,0.06067288,124.76,124.73,0.05125068]
[1744781093941,8.07717288,124.76,124.73,0.05125068]
[1744781094338,27.945659,124.75,124.73,0.05125068]
[1744781094537,8.0173,124.74,124.73,0.05125068]
[1744781094746,27.945659,124.75,124.69,2.1197]
[1744781094946,27.945659,124.72,124.67,2.0626]
[1744781095853,0.05875264,124.71,124.68,0.0561494]
[1744781096042,0.05907837,124.71,124.68,0.05871931]
[1744781096652,27.945659,124.7,124.68,0.05871931]
[1744781096852,0.05907837,124.71,124.68,0.05871931]
[1744781097747,27.945659,124.7,124.68,0.05871931]
[1744781097946,0.05907837,124.71,124.68,0.05871931]